fUSD/lending_fUSD_20260305
["ID","MTS","AMOUNT","RATE_DAILY","PERIOD"]
[407750388,1772749843345,-639.17176386,0.00019061,2]
[407750405,1772749845948,-1000.0,0.00018284,2]
[407750406,1772749845959,-158.62121076,0.00019061,2]
[407750407,1772749845971,-558.6153298,0.00019061,2]
[407750408,1772749845981,-316.69295944,0.00019061,2]
[407750409,1772749845993,-1151.30067516,0.00019061,2]
[407750410,1772749846011,-212.0063654,0.00019061,2]
[407750411,1772749846021,-3946.34996991,0.00019063,2]
[407750412,1772749846031,-151.39357628,0.000191,4]
[407750413,1772749846041,-153.94224949,0.000191,4]
[407750414,1772749846050,-194.92836115,0.00019148,2]
[407750415,1772749846060,-1000.0,0.00019151,2]
[407750416,1772749846071,-1758.2062025,0.00019152,2]
[407750417,1772749846081,-480.4562986,0.00019157,2]
[407750418,1772749846091,-178.13541739,0.00019157,2]
[407750419,1772749846101,-500.0,0.00019157,2]
[407750420,1772749846112,-352.94096674,0.00019157,2]
[407750421,1772749846122,-261.39766334,0.00019158,2]
[407750422,1772749846132,-796794.07021299,0.00019158,2]
[407750423,1772749846147,-360.86549803,0.00019158,2]
[407750424,1772749846162,-4487.0,0.00019158,2]
[407750430,1772749877562,174.57667362,0.00011344,2]
[407750431,1772749887394,250.0,0.00015,2]
[407750432,1772749916227,150.0,0.0001287,2]
[407750433,1772749916934,150.0,0.0001419,2]
[407750434,1772749917978,150.0,0.000149,2]
[407750437,1772750749096,-3266.402145,0.00017057,2]
[407750438,1772750749117,-150.0,0.00017143,2]
[407750439,1772750749138,-130.98607679,0.00017158,2]
[407750440,1772750767666,193.0,0.00016291,2]
[407750441,1772750826343,154.0,0.00016291,2]
[407750442,1772750891999,161.0,0.00016291,2]
[407750443,1772750948723,160.0,0.00016291,2]
[407750444,1772750963124,-206.81105055,0.00017169,2]
[407750445,1772750963149,-1830.89689208,0.00017201,2]
[407750446,1772750979503,1292.77,0.00014255,2]
[407750447,1772751008597,159.0,0.00016291,2]
[407750454,1772751032165,-291.0,0.0001679,2]
[407750455,1772751032175,-153.69,0.0001679,2]
[407750456,1772751032185,-153.69,0.0001706,2]
[407750457,1772751032194,-1196.84834089,0.00017201,2]
[407750458,1772751032206,-212.25476703,0.00017201,2]
[407750459,1772751032215,-708.136,0.00017269,2]
[407750460,1772751032225,-153.69,0.0001733,2]
[407750461,1772751032235,-150.0,0.0001752,2]
[407750462,1772751032245,-300.0,0.0001752,2]
[407750463,1772751032254,-270.39673628,0.0001752,2]
[407750464,1772751032274,-29.60326372,0.0001752,2]
[407750465,1772751032283,-470.39673628,0.0001752,2]
[407750466,1772751032296,-729.60326372,0.0001752,2]
[407750467,1772751032305,-300.0,0.0001752,2]
[407750468,1772751032316,-1066.51410353,0.0001752,2]
[407750469,1772751032339,-630.75339574,0.0001752,2]
[407750470,1772751032350,-1005.3639732,0.0001752,2]
[407750471,1772751032362,-670506.91420584,0.0001752,2]
[407750472,1772751032374,-125403.40502527,0.0001752,2]
[407750473,1772751032385,-197694.14293583,0.0001752,2]
[407750474,1772751032396,-208438.18319205,0.0001752,2]
[407750475,1772751032407,-1254.41808677,0.0001752,2]
[407750477,1772751032419,-284.15203215,0.0001752,2]
[407750479,1772751032430,-1552.98,0.0001752,2]
[407750491,1772751038225,-597.05867672,0.00017519,2]
[407750492,1772751038236,-500.0,0.00017519,2]
[407750493,1772751038245,-491.09886036,0.00017519,2]
[407750494,1772751038256,-500.0,0.00017519,2]
[407750495,1772751038266,-527.7724136,0.0001752,2]
[407750503,1772751038678,-867.29626824,0.0001752,2]
[407750504,1772751038706,-1441.65226089,0.0001752,2]
[407750507,1772751041436,-569.0,0.0001752,2]
[407750515,1772751043455,-2106.0,0.0001752,2]
[407750519,1772751046109,-500.0,0.0001752,2]
[407750615,1772751065935,591.91,0.00015471,2]
[407750616,1772751107927,156.25,0.00017,120]
[407750617,1772751464204,234.37,0.00017,120]
[407750618,1772751614155,1895.789803,0.00016265,2]
[407750619,1772751653224,5000.00077681,0.000162,5]
[407750620,1772751747997,2290.57661504,0.0001421,7]
[407750622,1772751931117,-200.0,0.00016376,2]
[407750623,1772751931139,-154.73882218,0.00016398,2]
[407750629,1772751969860,313.39967121,0.00016288,2]
[407750630,1772751969886,318.58422049,0.00016288,2]
[407750631,1772751969917,656.4061083,0.00016288,2]
[407750633,1772752040152,500.0,0.00012,2]
[407750634,1772752045079,-1490.63509293,0.00016398,2]
[407750636,1772752155075,-3337.00179713,0.00016398,2]
[407750637,1772752155099,-300.27779023,0.00016444,2]
[407750638,1772752155120,-2906.56363165,0.00016474,2]
[407750639,1772752155142,-1200.0,0.00016475,2]
[407750640,1772752155163,-300.0,0.00016475,2]
[407750641,1772752155183,-2500.0,0.00016476,2]
[407750642,1772752155204,-1238.42975805,0.00016476,2]
[407750643,1772752155226,-333.75,0.00016513,2]
[407750644,1772752155246,-4602.25,0.0001653,2]
[407750645,1772752155268,-1034.74,0.0001653,2]
[407750646,1772752155288,-199.81,0.0001653,2]
[407750647,1772752155308,-1288.39,0.00016695,2]
[407750648,1772752155329,-161.04,0.0001679,2]
[407750649,1772752155349,-151.0,0.00016897,2]
[407750650,1772752155374,-40058.66711506,0.000169,2]
[407750651,1772752168078,-173198.00730611,0.000169,2]
[407750672,1772752231265,-300.0,0.00016899,2]
[407750674,1772752231274,-1200.0,0.00016899,2]
[407750677,1772752231284,-173.0,0.000169,3]
[407750678,1772752231293,-1300.96661148,0.000169,2]
[407750680,1772752231304,-477.97880591,0.000169,2]
[407750681,1772752231315,-344.81,0.000169,2]
[407750682,1772752231325,-566.21671624,0.000169,2]
[407750683,1772752231336,-2738.37873719,0.000169,2]
[407750684,1772752231356,-71064.59519188,0.000169,2]
[407750685,1772752231367,-824.83,0.000169,2]
[407750686,1772752231377,-280.63250004,0.000169,2]
[407750687,1772752231388,-271.90586894,0.000169,2]
[407750688,1772752231399,-3766.60401429,0.000169,2]
[407750689,1772752231422,-6478.73944726,0.000169,2]
[407750793,1772752237312,-4711.9106929,0.000169,2]
[407750796,1772752237373,-713.98711326,0.000169,2]
[407750797,1772752237385,-315.0,0.000169,2]
[407750798,1772752237435,-1319.07783769,0.000169,2]
[407750819,1772752242447,-13435.55331655,0.000169,2]
[407750820,1772752242507,-79959.57120509,0.000169,2]
[407750825,1772752245305,-500.0,0.000169,2]
[407750827,1772752344341,866.65189346,0.00012,2]
[407750828,1772752348784,500.0,0.00012,2]
[407750830,1772752390915,164.0,0.00016291,2]
[407750831,1772752391148,164.0,0.00016291,2]
[407750832,1772752391417,164.0,0.00016291,2]
[407750833,1772752391899,164.0,0.00016291,2]
[407750834,1772752392134,164.0,0.00016291,2]
[407750835,1772752392369,164.0,0.00016291,2]
[407750836,1772752392608,164.0,0.00016291,2]
[407750837,1772752394079,164.0,0.00016291,2]
[407750838,1772752394115,164.0,0.00016291,2]
[407750839,1772752445199,151.0,0.00016291,3]
[407750840,1772752505624,152.0,0.00016291,3]
[407750841,1772752571848,152.0,0.00016291,3]
[407750843,1772752626855,152.0,0.00016291,3]
[407750844,1772752652534,500.0,0.00012,2]
[407750845,1772752686751,152.0,0.00016291,3]
[407750846,1772752739563,158.93,8.209e-05,2]
[407750847,1772752739778,158.93,8.796e-05,2]
[407750848,1772752739987,158.93,9.382e-05,2]
[407750849,1772752740206,158.93,9.968e-05,2]
[407750850,1772752740403,158.93,0.00010555,2]
[407750851,1772752740628,158.93,0.00011141,2]
[407750852,1772752740823,158.93,0.00011728,2]
[407750853,1772752741031,158.93,0.00012314,2]
[407750854,1772752741457,158.93,0.000129,2]
[407750855,1772752741699,158.93,0.00013487,2]
[407750856,1772752741911,158.93,0.00014073,2]
[407750857,1772752742141,158.93,0.00014659,2]
[407750858,1772752742360,158.93,0.00015246,2]
[407750859,1772752742576,158.93,0.00015832,2]
[407750860,1772752748253,152.0,0.00016291,3]
[407750861,1772752761596,5000.0,0.00016291,2]
[407750862,1772752809106,152.0,0.00016291,3]
[407750863,1772752865910,152.0,0.00016291,3]
[407750864,1772752874385,166.66,0.00015296,2]
[407750865,1772752874608,166.66,0.00015618,2]
[407750866,1772752874799,166.66,0.0001594,2]
[407750867,1772752874989,166.66,0.00016262,2]
[407750868,1772752926725,152.0,0.00016291,3]
[407750869,1772752931362,4239.0,0.00015952,2]
[407750870,1772752989199,1000.0,0.00015972,2]
[407750871,1772752992017,152.0,0.00016291,3]
[407750872,1772753000502,674.718665,0.00016237,2]
[407750873,1772753046727,152.0,0.00016291,3]
[407750874,1772753108294,150.0,0.00015937,2]
[407750875,1772753121144,1557.93,0.00015949,2]
[407750876,1772753139156,-471.2223288,0.00016319,2]
[407750877,1772753139484,-659.16437144,0.00016344,2]
[407750878,1772753177703,3240.0,0.00015954,2]
[407750879,1772753231090,-3072.19672923,0.00016344,2]
[407750880,1772753231112,-250.0,0.00016369,2]
[407750881,1772753231132,-1043.39618101,0.00016418,2]
[407750882,1772753363130,-314.1482192,0.00016319,2]
[407750883,1772753363153,-156.60381899,0.00016418,2]
[407750884,1772753363176,-500.0,0.00016419,2]
[407750885,1772753363199,-2000.0,0.00016419,2]
[407750886,1772753363235,-158.93,0.00016419,2]
[407750887,1772753363259,-314.1482192,0.00016505,2]
[407750888,1772753363283,-166.66,0.00016584,2]
[407750889,1772753363306,-151.0,0.00016688,2]
[407750890,1772753363326,-1000.0,0.00016689,2]
[407750891,1772753363352,-300.0,0.00016689,2]
[407750892,1772753363372,-1000.0,0.0001669,2]
[407750893,1772753363394,-500.0,0.0001669,2]
[407750894,1772753363418,-174.09237593,0.0001669,2]
[407750895,1772753363440,-167.77129268,0.0001669,2]
[407750896,1772753364369,-212.54957362,0.0001669,2]
[407750897,1772753364398,-500.0,0.0001669,2]
[407750898,1772753364428,-500.0,0.0001669,2]
[407750899,1772753364457,-500.0,0.0001669,2]
[407750900,1772753364485,-500.0,0.0001669,2]
[407750901,1772753364512,-500.0,0.0001669,2]
[407750902,1772753364540,-500.0,0.0001669,2]
[407750903,1772753364567,-500.0,0.0001669,2]
[407750904,1772753364594,-500.0,0.0001669,2]
[407750905,1772753364621,-500.0,0.0001669,2]
[407750906,1772753364648,-500.0,0.0001669,2]
[407750907,1772753364675,-500.0,0.0001669,2]
[407750908,1772753364702,-500.0,0.0001669,2]
[407750909,1772753364728,-500.0,0.0001669,2]
[407750910,1772753364754,-500.0,0.0001669,2]
[407750911,1772753364784,-500.0,0.0001669,2]
[407750912,1772753364811,-500.0,0.0001669,2]
[407750913,1772753364837,-500.0,0.0001669,2]
[407750914,1772753364864,-500.0,0.0001669,2]
[407750915,1772753364891,-500.0,0.0001669,2]
[407750916,1772753364918,-500.0,0.0001669,2]
[407750917,1772753364945,-500.0,0.0001669,2]
[407750918,1772753364972,-500.0,0.0001669,2]
[407750919,1772753364999,-500.0,0.0001669,2]
[407750920,1772753365031,-500.0,0.0001669,2]
[407750921,1772753365061,-500.0,0.0001669,2]
[407750922,1772753365089,-500.0,0.0001669,2]
[407750923,1772753365116,-500.0,0.0001669,2]
[407750924,1772753365143,-500.0,0.0001669,2]
[407750925,1772753365170,-500.0,0.0001669,2]
[407750926,1772753365197,-500.0,0.0001669,2]
[407750927,1772753365224,-500.0,0.0001669,2]
[407750928,1772753365251,-500.0,0.0001669,2]
[407750929,1772753365278,-500.0,0.0001669,2]
[407750930,1772753365309,-500.0,0.0001669,2]
[407750931,1772753365336,-500.0,0.0001669,2]
[407750932,1772753365369,-500.0,0.0001669,2]
[407750933,1772753365398,-500.0,0.0001669,2]
[407750934,1772753365428,-500.0,0.0001669,2]
[407750935,1772753365456,-500.0,0.0001669,2]
[407750936,1772753365488,-500.0,0.0001669,2]
[407750937,1772753365520,-500.0,0.0001669,2]
[407750938,1772753365546,-500.0,0.0001669,2]
[407750939,1772753365573,-500.0,0.0001669,2]
[407750940,1772753365603,-500.0,0.0001669,2]
[407750941,1772753365628,-232.3959083,0.0001669,2]
[407750942,1772753365650,-500.0,0.0001669,2]
[407750943,1772753365672,-500.0,0.0001669,2]
[407750944,1772753365701,-500.0,0.0001669,2]
[407750945,1772753365729,-500.0,0.0001669,2]
[407750946,1772753365759,-500.0,0.0001669,2]
[407750947,1772753365788,-500.0,0.0001669,2]
[407750948,1772753365818,-500.0,0.0001669,2]
[407750949,1772753365848,-500.0,0.0001669,2]
[407750950,1772753365878,-500.0,0.0001669,2]
[407750951,1772753365910,-500.0,0.0001669,2]
[407750952,1772753365961,-500.0,0.0001669,2]
[407750953,1772753366003,-500.0,0.0001669,2]
[407750954,1772753366032,-500.0,0.0001669,2]
[407750955,1772753366060,-500.0,0.0001669,2]
[407750956,1772753366087,-500.0,0.0001669,2]
[407750957,1772753366116,-500.0,0.0001669,2]
[407750958,1772753366144,-500.0,0.0001669,2]
[407750959,1772753366181,-500.0,0.0001669,2]
[407750960,1772753366213,-500.0,0.0001669,2]
[407750961,1772753366242,-500.0,0.0001669,2]
[407750962,1772753366774,-500.0,0.0001669,2]
[407750963,1772753366805,-488.77942436,0.0001669,2]
[407750964,1772753366831,-500.0,0.0001669,2]
[407750965,1772753366857,-500.0,0.0001669,2]
[407750966,1772753366883,-500.0,0.0001669,2]
[407750967,1772753366908,-500.0,0.0001669,2]
[407750968,1772753366935,-500.0,0.0001669,2]
[407750969,1772753366961,-500.0,0.0001669,2]
[407750970,1772753366987,-500.0,0.0001669,2]
[407750971,1772753367013,-500.0,0.0001669,2]
[407750972,1772753367039,-500.0,0.0001669,2]
[407750973,1772753367064,-500.0,0.0001669,2]
[407750974,1772753367093,-500.0,0.0001669,2]
[407750975,1772753367121,-500.0,0.0001669,2]
[407750976,1772753367148,-300.0,0.0001669,2]
[407750977,1772753367171,-550.0,0.0001669,2]
[407750978,1772753367195,-82012.08229372,0.00016691,2]
[407750981,1772753431506,-300.0,0.0001669,2]
[407750982,1772753431516,-1200.0,0.0001669,2]
[407750983,1772753431527,-296.0,0.0001669,2]
[407750984,1772753431536,-428.66186752,0.0001669,2]
[407750985,1772753431547,-418.75,0.0001669,2]
[407750986,1772753431559,-462.46160238,0.0001669,2]
[407750987,1772753431570,-1268.89801234,0.0001669,2]
[407750988,1772753431579,-187571.32976918,0.00016691,2]
[407750989,1772753431590,-2867.61647995,0.00016691,2]
[407750990,1772753431601,-482.53301834,0.00016691,2]
[407750991,1772753431676,-523.0,0.00016691,2]
[407751002,1772753437770,-324.44831552,0.00016691,2]
[407751030,1772753438558,-836420.02102329,0.00016691,2]
[407751031,1772753438568,-314.1482192,0.00016691,2]
[407751032,1772753438577,-4893.86290128,0.00016691,2]
[407751033,1772753438587,-161.15,0.0001679,2]
[407751034,1772753438596,-5837.83,0.00016791,2]
[407751035,1772753438606,-1000.0,0.00016791,2]
[407751036,1772753438616,-5857.2245,0.00016791,2]
[407751037,1772753438625,-2500.0,0.00016791,2]
[407751038,1772753438635,-7678.39873138,0.00016791,2]
[407751039,1772753438644,-1065.8610162,0.00016791,2]
[407751040,1772753438654,-200.0,0.00016795,2]
[407751041,1772753438664,-277.8803,0.000168,2]
[407751042,1772753438673,-500.0,0.00016877,2]
[407751043,1772753438683,-4734.0,0.00016877,2]
[407751044,1772753438692,-210.88260812,0.00016881,2]
[407751045,1772753438702,-151.0,0.00016888,2]
[407751046,1772753438712,-500.0,0.0001689,2]
[407751047,1772753438721,-500.0,0.0001689,2]
[407751048,1772753438730,-500.0,0.0001689,2]
[407751049,1772753438740,-500.0,0.0001689,2]
[407751050,1772753438749,-500.0,0.0001689,2]
[407751051,1772753438759,-500.0,0.0001689,2]
[407751052,1772753438769,-500.0,0.0001689,2]
[407751053,1772753438779,-500.0,0.0001689,2]
[407751054,1772753438788,-500.0,0.0001689,2]
[407751055,1772753438798,-500.0,0.0001689,2]
[407751056,1772753438807,-500.0,0.0001689,2]
[407751057,1772753438817,-500.0,0.0001689,2]
[407751058,1772753438826,-500.0,0.0001689,2]
[407751059,1772753438835,-500.0,0.0001689,2]
[407751060,1772753438844,-500.0,0.0001689,2]
[407751061,1772753438855,-500.0,0.0001689,2]
[407751062,1772753438864,-500.0,0.0001689,2]
[407751063,1772753438874,-500.0,0.0001689,2]
[407751064,1772753438883,-500.0,0.0001689,2]
[407751065,1772753438892,-151.0,0.0001689,2]
[407751066,1772753438901,-500.0,0.0001689,2]
[407751067,1772753438911,-151.0,0.0001689,2]
[407751068,1772753438921,-500.0,0.0001689,2]
[407751069,1772753438930,-151.0,0.0001689,2]
[407751070,1772753438939,-500.0,0.0001689,2]
[407751071,1772753438949,-151.0,0.0001689,2]
[407751072,1772753438959,-151.0,0.0001689,2]
[407751073,1772753438968,-194.79478567,0.0001689,2]
[407751074,1772753438977,-151.0,0.0001689,2]
[407751075,1772753438987,-151.0,0.0001689,2]
[407751076,1772753438996,-151.0,0.0001689,2]
[407751077,1772753439006,-151.0,0.0001689,2]
[407751078,1772753439016,-151.0,0.0001689,2]
[407751079,1772753439026,-151.0,0.0001689,2]
[407751080,1772753439036,-151.0,0.0001689,2]
[407751081,1772753439046,-151.0,0.0001689,2]
[407751082,1772753439056,-151.0,0.0001689,2]
[407751083,1772753439066,-151.0,0.0001689,2]
[407751084,1772753439075,-151.0,0.0001689,2]
[407751085,1772753439085,-154.63623529,0.0001689,2]
[407751086,1772753439094,-1291.035,0.0001689,2]
[407751087,1772753439104,-349.79,0.0001689,2]
[407751088,1772753439113,-300.0,0.0001689,2]
[407751089,1772753439122,-670.86732423,0.0001689,2]
[407751090,1772753439132,-2248.0800297,0.00016891,2]
[407751091,1772753439141,-1431.2412304,0.00016891,2]
[407751092,1772753439150,-10072.1381196,0.00016891,2]
[407751093,1772753439160,-242757.1312643,0.00016891,2]
[407751094,1772753439170,-89893.0384141,0.00016891,2]
[407751095,1772753439179,-174.4862859,0.00016891,2]
[407751096,1772753439189,-64960.8141783,0.00016891,2]
[407751097,1772753439199,-585049.7126272,0.00016891,2]
[407751098,1772753439209,-151.0,0.00016891,2]
[407751099,1772753439219,-151.0,0.00016891,2]
[407751100,1772753439228,-151.0,0.00016891,2]
[407751101,1772753439238,-151.0,0.00016891,2]
[407751102,1772753439248,-249.030956,0.00016891,2]
[407751103,1772753439258,-210.84861,0.00016891,2]
[407751104,1772753439268,-151.0,0.00016891,2]
[407751105,1772753439278,-220.556623,0.00016891,2]
[407751106,1772753439288,-220.556623,0.00016891,2]
[407751107,1772753439298,-220.556623,0.00016891,2]
[407751108,1772753439307,-220.556623,0.00016891,2]
[407751109,1772753439317,-220.556623,0.00016891,2]
[407751110,1772753439326,-220.556623,0.00016891,2]
[407751111,1772753439336,-220.556623,0.00016891,2]
[407751112,1772753439346,-220.556623,0.00016891,2]
[407751113,1772753439356,-305.075337,0.00016891,2]
[407751114,1772753439370,-305.075337,0.00016891,2]
[407751115,1772753439379,-305.075337,0.00016891,2]
[407751116,1772753439388,-305.075337,0.00016891,2]
[407751117,1772753439399,-305.075337,0.00016891,2]
[407751118,1772753439414,-305.075337,0.00016891,2]
[407751119,1772753439424,-151.0,0.00016891,2]
[407751120,1772753439433,-151.0,0.00016891,2]
[407751121,1772753439444,-151.0,0.00016891,2]
[407751122,1772753439454,-151.0,0.00016891,2]
[407751123,1772753439464,-305.075337,0.00016891,2]
[407751124,1772753439474,-305.075337,0.00016891,2]
[407751125,1772753439484,-151.0,0.00016891,2]
[407751126,1772753439493,-151.0,0.00016891,2]
[407751127,1772753439503,-151.0,0.00016891,2]
[407751128,1772753439512,-172.003609,0.00016891,2]
[407751129,1772753439522,-151.0,0.00016891,2]
[407751130,1772753439532,-151.0,0.00016891,2]
[407751131,1772753439542,-151.0,0.00016891,2]
[407751132,1772753439551,-151.0,0.00016891,2]
[407751133,1772753439561,-151.0,0.000169,2]
[407751134,1772753439571,-151.0,0.000169,2]
[407751135,1772753439581,-151.0,0.000169,2]
[407751136,1772753439590,-151.0,0.000169,2]
[407751137,1772753439599,-200.0,0.000169,2]
[407751138,1772753439609,-200.0,0.000169,2]
[407751139,1772753439619,-200.0,0.000169,2]
[407751140,1772753439628,-200.0,0.000169,2]
[407751141,1772753439638,-349.56,0.000169,2]
[407751142,1772753439648,-151.0,0.000169,2]
[407751143,1772753439657,-151.0,0.000169,2]
[407751144,1772753439667,-151.0,0.000169,2]
[407751145,1772753439676,-151.0,0.000169,2]
[407751146,1772753439686,-200.0,0.000169,2]
[407751147,1772753439695,-1420.51608785,0.000169,2]
[407751149,1772753439705,-166.66,0.00016906,2]
[407751150,1772753439715,-150163.48280012,0.00016909,2]
[407751151,1772753439724,-1097.51,0.00016989,2]
[407751152,1772753439735,-1097.51,0.00016989,3]
[407751153,1772753439744,-1097.51,0.00016989,4]
[407751154,1772753439754,-20144.88138693,0.00017,2]
[407751155,1772753439764,-200.0,0.00017,2]
[407751156,1772753439773,-320.9911684,0.00017034,2]
[407751157,1772753439783,-4893.8629012,0.00017048,2]
[407751158,1772753439794,-161.15,0.0001706,2]
[407751159,1772753439805,-1288.39,0.00017102,2]
[407751160,1772753439815,-7678.39873135,0.00017136,2]
[407751161,1772753439825,-193.0,0.00017144,2]
[407751163,1772753439835,-417.0,0.0001715,2]
[407751164,1772753439846,-253.80614223,0.00017159,2]
[407751165,1772753439855,-349.79,0.00017164,2]
[407751166,1772753439865,-604.51893434,0.00017177,2]
[407751167,1772753439875,-329.48393547,0.00017256,2]
[407751168,1772753439885,-214.83167072,0.000173,2]
[407751169,1772753439895,-436.60430789,0.000173,2]
[407751170,1772753439904,-532.1184128,0.000173,2]
[407751171,1772753439913,-353.64834112,0.000173,2]
[407751172,1772753439923,-492.46501153,0.000173,2]
[407751173,1772753439932,-1062.00844869,0.000173,2]
[407751174,1772753439942,-169.39,0.00017302,2]
[407751175,1772753439951,-2569.14443878,0.00017306,2]
[407751176,1772753439961,-151.0,0.00017317,2]
[407751177,1772753439970,-32891.4421,0.0001732,2]
[407751178,1772753439980,-200.0,0.00017327,2]
[407751179,1772753439990,-161.15,0.0001733,2]
[407751180,1772753440000,-333.75,0.00017339,2]
[407751181,1772753440010,-214.73,0.00017353,2]
[407751182,1772753440019,-14969.4431821,0.00017383,2]
[407751183,1772753440029,-1500.0,0.00017385,2]
[407751184,1772753440038,-214.27677098,0.000174,2]
[407751185,1772753440048,-330.73403246,0.000174,2]
[407751186,1772753440059,-355.68054761,0.000174,2]
[407751187,1772753440068,-355.08997448,0.000174,2]
[407751188,1772753440078,-4893.8629012,0.00017404,2]
[407751189,1772753440087,-1065.86101618,0.00017413,2]
[407751190,1772753440097,-349.79,0.00017438,2]
[407751191,1772753440107,-199.81,0.00017448,2]
[407751192,1772753440116,-7678.39873135,0.00017482,2]
[407751193,1772753440126,-1288.39,0.0001751,2]
[407751194,1772753440135,-161.15,0.000176,2]
[407751195,1772753440145,-500.0,0.0001762,2]
[407751196,1772753440155,-500.0,0.0001762,2]
[407751197,1772753440165,-500.0,0.0001762,2]
[407751198,1772753440174,-500.0,0.0001762,2]
[407751199,1772753440184,-500.0,0.0001762,2]
[407751200,1772753440193,-500.0,0.0001762,2]
[407751201,1772753440202,-500.0,0.0001762,2]
[407751202,1772753440212,-500.0,0.0001762,2]
[407751203,1772753440221,-500.0,0.0001762,2]
[407751204,1772753440231,-151.0,0.0001762,2]
[407751205,1772753440240,-151.0,0.0001762,2]
[407751206,1772753440250,-151.0,0.0001762,2]
[407751207,1772753440260,-349.79,0.00017712,2]
[407751208,1772753440269,-4000.0,0.00017721,2]
[407751209,1772753440279,-4893.8629012,0.00017761,2]
[407751210,1772753440289,-151.0,0.00017761,2]
[407751211,1772753440299,-151.0,0.00017761,2]
[407751212,1772753440309,-151.0,0.00017761,2]
[407751213,1772753440318,-151.0,0.00017761,2]
[407751214,1772753440328,-220.556623,0.00017808,2]
[407751215,1772753440338,-220.556623,0.00017808,2]
[407751216,1772753440346,-220.556623,0.00017808,2]
[407751217,1772753440356,-220.556623,0.00017808,2]
[407751218,1772753440367,-305.075337,0.00017808,2]
[407751219,1772753440378,-305.075337,0.00017808,2]
[407751221,1772753440387,-305.075337,0.00017808,2]
[407751223,1772753440397,-305.075337,0.00017808,2]
[407751225,1772753440406,-151.0,0.00017808,2]
[407751226,1772753440416,-500.0,0.00017808,2]
[407751227,1772753440425,-151.0,0.00017808,2]
[407751228,1772753440435,-151.0,0.00017808,2]
[407751229,1772753440447,-151.0,0.00017808,2]
[407751230,1772753440456,-151.0,0.00017827,2]
[407751231,1772753440466,-151.0,0.00017827,2]
[407751232,1772753440476,-151.0,0.00017827,2]
[407751233,1772753440486,-151.0,0.00017827,2]
[407751234,1772753440496,-7678.39873135,0.00017827,2]
[407751235,1772753440505,-161.15,0.0001787,2]
[407751236,1772753440515,-1288.39,0.00017917,2]
[407751237,1772753440525,-1752.24,0.00017963,2]
[407751238,1772753440535,-1000.0,0.00017969,2]
[407751239,1772753440544,-189.03928642,0.00017978,2]
[407751240,1772753440554,-1591.31376098,0.00017978,2]
[407751241,1772753440563,-349.81069289,0.00017986,2]
[407751242,1772753440573,-1065.86101618,0.00018035,2]
[407751243,1772753440582,-600.0,0.00018082,7]
[407751244,1772753440591,-2000.0,0.00018082,7]
[407751245,1772753440601,-4893.8629012,0.00018117,2]
[407751246,1772753440610,-151.0,0.00018124,2]
[407751247,1772753440619,-151.0,0.00018124,2]
[407751248,1772753440629,-1398.1513,0.0001814,2]
[407751249,1772753440639,-161.15,0.0001814,2]
[407751250,1772753440648,-151.0,0.00018162,2]
[407751251,1772753440657,-333.75,0.00018165,2]